fUST/lending_fUST_20250218
["ID","MTS","AMOUNT","RATE_DAILY","PERIOD"]
[353489621,1739880644212,-500.0,0.00013979,2]
[353489623,1739880644221,-506.04350759,0.00013979,2]
[353489624,1739880644230,-500.0,0.00013979,2]
[353489626,1739880644240,-500.0,0.00013979,2]
[353489629,1739880644249,-500.0,0.00013979,2]
[353489631,1739880644258,-500.0,0.00013979,2]
[353489633,1739880644268,-530.46,0.00013979,2]
[353489635,1739880644277,-500.0,0.00013979,2]
[353489637,1739880644286,-500.0,0.00013979,2]
[353489639,1739880644295,-500.0,0.00013979,2]
[353489641,1739880644303,-222.26239384,0.00013979,2]
[353489643,1739880644316,-225.53760616,0.00013979,2]
[353489645,1739880644325,-384.68845277,0.00013979,2]
[353489647,1739880644334,-500.0,0.00013979,2]
[353489649,1739880644344,-500.0,0.0001398,2]
[353489651,1739880644353,-500.0,0.0001398,2]
[353489653,1739880644363,-500.0,0.0001398,2]
[353489655,1739880644373,-500.0,0.0001398,2]
[353489657,1739880644382,-500.0,0.0001398,2]
[353489659,1739880644391,-500.0,0.0001398,2]
[353489661,1739880644400,-500.0,0.0001398,2]
[353489663,1739880644409,-500.0,0.0001398,2]
[353489665,1739880644419,-500.0,0.0001398,2]
[353489667,1739880644428,-500.0,0.0001398,2]
[353489669,1739880644437,-500.0,0.0001398,2]
[353489671,1739880644446,-500.0,0.0001398,2]
[353489673,1739880644456,-500.0,0.0001398,2]
[353489675,1739880644466,-500.0,0.0001398,2]
[353489677,1739880644475,-500.0,0.0001398,2]
[353489679,1739880644484,-549.01,0.0001398,2]
[353489681,1739880644493,-500.0,0.0001398,2]
[353489683,1739880644503,-500.0,0.0001398,2]
[353489685,1739880644512,-500.0,0.0001398,2]
[353489687,1739880644521,-500.0,0.0001398,2]
[353489689,1739880644530,-500.0,0.0001398,2]
[353489691,1739880644540,-500.0,0.0001398,2]
[353489693,1739880644549,-500.0,0.0001398,2]
[353489695,1739880644559,-500.0,0.0001398,2]
[353489697,1739880644568,-500.0,0.0001398,2]
[353489699,1739880644578,-500.0,0.0001398,2]
[353489701,1739880644587,-500.0,0.0001398,2]
[353489703,1739880644598,-500.0,0.0001398,2]
[353489706,1739880644608,-500.0,0.0001398,2]
[353489708,1739880644618,-500.0,0.0001398,2]
[353489710,1739880644627,-500.0,0.0001398,2]
[353489712,1739880644636,-500.0,0.0001398,2]
[353489714,1739880644646,-500.0,0.0001398,2]
[353489716,1739880644655,-500.0,0.0001398,2]
[353489718,1739880644665,-500.0,0.0001398,2]
[353489720,1739880644677,-500.0,0.0001398,2]
[353489722,1739880644686,-500.0,0.0001398,2]
[353489724,1739880644695,-500.0,0.0001398,2]
[353489726,1739880644705,-500.0,0.0001398,2]
[353489728,1739880644715,-500.0,0.0001398,2]
[353489730,1739880644725,-500.0,0.0001398,2]
[353489732,1739880644734,-500.0,0.0001398,2]
[353489734,1739880644746,-500.0,0.0001398,2]
[353489736,1739880644756,-500.0,0.0001398,2]
[353489738,1739880644765,-500.0,0.0001398,2]
[353489740,1739880644774,-500.0,0.0001398,2]
[353489742,1739880644783,-513.80523943,0.0001398,2]
[353489744,1739880644793,-500.0,0.0001398,2]
[353489746,1739880644803,-500.0,0.0001398,2]
[353489748,1739880644813,-500.0,0.0001398,2]
[353489750,1739880644822,-500.0,0.0001398,2]
[353489752,1739880644832,-500.0,0.0001398,2]
[353489754,1739880644843,-500.0,0.0001398,2]
[353489756,1739880644852,-500.0,0.0001398,2]
[353489758,1739880644862,-500.0,0.0001398,2]
[353489760,1739880644873,-500.0,0.0001398,2]
[353489762,1739880644883,-500.0,0.0001398,2]
[353489764,1739880644894,-500.0,0.0001398,2]
[353489766,1739880644903,-500.0,0.0001398,2]
[353489768,1739880644913,-500.0,0.0001398,2]
[353489770,1739880644922,-500.0,0.0001398,2]
[353489772,1739880644933,-500.0,0.0001398,2]
[353489774,1739880644943,-500.0,0.0001398,2]
[353489776,1739880644953,-500.0,0.0001398,2]
[353489778,1739880644963,-500.0,0.0001398,2]
[353489780,1739880644972,-500.0,0.0001398,2]
[353489783,1739880644982,-500.0,0.0001398,2]
[353489785,1739880644991,-500.0,0.0001398,2]
[353489787,1739880645001,-500.0,0.0001398,2]
[353489789,1739880645011,-500.0,0.0001398,2]
[353489791,1739880645020,-409.98662026,0.0001398,2]
[353489793,1739880645029,-500.0,0.0001398,2]
[353489795,1739880645038,-500.0,0.0001398,2]
[353489797,1739880645047,-509.70000003,0.0001398,2]
[353489798,1739880645056,-500.0,0.0001398,2]
[353489800,1739880645066,-500.0,0.0001398,2]
[353489802,1739880645075,-540.8339394,0.0001398,2]
[353489804,1739880645084,-500.0,0.0001398,2]
[353489806,1739880645093,-500.0,0.0001398,2]
[353489808,1739880645103,-500.0,0.0001398,2]
[353489811,1739880645112,-500.0,0.0001398,2]
[353489813,1739880645122,-500.0,0.0001398,2]
[353489814,1739880645132,-500.0,0.0001398,2]
[353489817,1739880645141,-500.0,0.0001398,2]
[353489818,1739880645151,-500.0,0.0001398,2]
[353489821,1739880645160,-592.25,0.0001398,2]
[353489823,1739880645170,-500.0,0.0001398,2]
[353489825,1739880645180,-4393.68,0.0001398,2]
[353489827,1739880645189,-500.0,0.0001398,2]
[353489829,1739880645199,-500.0,0.0001398,2]
[353489831,1739880645208,-500.0,0.0001398,2]
[353489833,1739880645218,-500.0,0.0001398,2]
[353489835,1739880645227,-500.0,0.0001398,2]
[353489837,1739880645236,-500.0,0.0001398,2]
[353489839,1739880645245,-500.0,0.0001398,2]
[353489841,1739880645255,-500.0,0.0001398,2]
[353489843,1739880645265,-500.0,0.0001398,2]
[353489845,1739880645274,-500.0,0.0001398,2]
[353489847,1739880645283,-1754.53,0.0001398,2]
[353489849,1739880645293,-500.0,0.0001398,2]
[353489851,1739880645302,-500.0,0.0001398,2]
[353489853,1739880645312,-500.0,0.0001398,2]
[353489855,1739880645322,-500.0,0.0001398,2]
[353489857,1739880645331,-500.0,0.0001398,2]
[353489859,1739880645340,-500.0,0.0001398,2]
[353489861,1739880645350,-500.0,0.0001398,2]
[353489863,1739880645360,-236.11155983,0.0001398,2]
[353489865,1739880645369,-500.0,0.0001398,2]
[353489866,1739880645379,-260.92,0.0001398,2]
[353489867,1739880645388,-467.28,0.0001398,2]
[353489868,1739880645397,-500.0,0.0001398,2]
[353489869,1739880645408,-377.81584853,0.0001398,2]
[353489870,1739880645418,-500.0,0.0001398,2]
[353489871,1739880645427,-484.28839754,0.0001398,2]
[353489872,1739880645436,-500.0,0.0001398,2]
[353489873,1739880645446,-500.0,0.0001398,2]
[353489874,1739880645455,-500.0,0.0001398,2]
[353489875,1739880645465,-1710.59,0.0001398,2]
[353489876,1739880645477,-500.0,0.0001398,2]
[353489877,1739880645487,-500.0,0.0001398,2]
[353489878,1739880645497,-500.0,0.0001398,2]
[353489879,1739880645507,-500.0,0.0001398,2]
[353489880,1739880645518,-546.46343074,0.0001398,2]
[353489881,1739880645527,-500.0,0.0001398,2]
[353489883,1739880645537,-500.0,0.0001398,2]
[353489885,1739880645546,-500.0,0.0001398,2]
[353489887,1739880645555,-500.0,0.0001398,2]
[353489889,1739880645564,-500.0,0.0001398,2]
[353489891,1739880645574,-500.0,0.0001398,2]
[353489893,1739880645583,-500.0,0.0001398,2]
[353489895,1739880645593,-270.09272263,0.0001398,2]
[353489897,1739880645602,-500.0,0.00013981,2]
[353489899,1739880645611,-503.50200437,0.00013981,2]
[353489901,1739880645621,-500.0,0.00013981,2]
[353489903,1739880645630,-500.0,0.00013981,2]
[353489905,1739880645639,-500.0,0.00013981,2]
[353489907,1739880645649,-500.0,0.00013981,2]
[353489909,1739880645658,-500.0,0.00013981,2]
[353489911,1739880645672,-500.0,0.00013981,2]
[353489913,1739880645682,-500.0,0.00013981,2]
[353489915,1739880645692,-500.0,0.00013981,2]
[353489917,1739880645701,-500.0,0.00013981,2]
[353489919,1739880645710,-500.0,0.00013981,2]
[353489921,1739880645721,-500.0,0.00013981,2]
[353489923,1739880645730,-500.0,0.00013981,2]
[353489925,1739880645739,-500.0,0.00013981,2]
[353489927,1739880645752,-500.0,0.00013981,2]
[353489929,1739880645762,-500.0,0.00013983,2]
[353489932,1739880645772,-500.0,0.00013983,2]
[353489934,1739880645781,-500.0,0.00013983,2]
[353489936,1739880645791,-500.0,0.00013983,2]
[353489938,1739880645800,-500.0,0.00013983,2]
[353489940,1739880645809,-500.0,0.00013983,2]
[353489941,1739880645819,-500.0,0.00013983,2]
[353489943,1739880645830,-390.70122922,0.00013983,2]
[353489945,1739880645840,-500.0,0.00013983,2]
[353489947,1739880645850,-500.0,0.00013983,2]
[353489949,1739880645859,-500.0,0.00013983,2]
[353489951,1739880645869,-500.0,0.00013983,2]
[353489953,1739880645878,-500.0,0.00013983,2]
[353489955,1739880645887,-500.0,0.00013983,2]
[353489957,1739880645896,-500.0,0.00013983,2]
[353489959,1739880645906,-500.0,0.00013983,2]
[353489961,1739880645915,-500.0,0.00013983,2]
[353489963,1739880645928,-500.0,0.00013983,2]
[353489966,1739880645937,-500.0,0.00013983,2]
[353489967,1739880645947,-624.5,0.00013983,2]
[353489969,1739880645955,-500.0,0.00013983,2]
[353489971,1739880645965,-498.55,0.00013983,2]
[353489974,1739880645976,-500.0,0.00013983,2]
[353489976,1739880645986,-533.62805799,0.00013983,2]
[353489977,1739880645996,-500.0,0.00014062,2]
[353489979,1739880646012,-500.0,0.00014062,2]
[353489981,1739880646021,-500.0,0.00014062,2]
[353489983,1739880646031,-813.59,0.00014062,2]
[353489986,1739880646041,-500.0,0.00014062,2]
[353489988,1739880646050,-500.0,0.00014062,2]
[353489989,1739880646059,-500.0,0.00014062,2]
[353489992,1739880646069,-500.0,0.00014062,2]
[353489993,1739880646078,-514.65,0.00014062,2]
[353489995,1739880646087,-430.69,0.00014062,2]
[353489997,1739880646097,-500.0,0.00014062,2]
[353490000,1739880646108,-500.0,0.00014062,2]
[353490001,1739880646117,-500.0,0.00014062,2]
[353490004,1739880646127,-500.0,0.00014062,2]
[353490005,1739880646136,-500.0,0.00014062,2]
[353490007,1739880646145,-500.0,0.00014062,2]
[353490010,1739880646155,-150.68998476,0.00014062,2]
[353490011,1739880646164,-500.0,0.00014062,2]
[353490014,1739880646174,-500.0,0.00014062,2]
[353490015,1739880646183,-500.0,0.00014062,2]
[353490018,1739880646192,-500.0,0.00014062,2]
[353490020,1739880646202,-270.2,0.00014063,2]
[353490021,1739880646211,-500.0,0.00014063,2]
[353490024,1739880646222,-500.0,0.00014063,2]
[353490026,1739880646231,-500.0,0.00014063,2]
[353490028,1739880646240,-500.0,0.00014063,2]
[353490030,1739880646249,-500.0,0.00014063,2]
[353490032,1739880646258,-500.0,0.00014063,2]
[353490033,1739880646268,-500.0,0.00014063,2]
[353490035,1739880646277,-500.0,0.00014063,2]
[353490038,1739880646287,-500.0,0.00014063,2]
[353490040,1739880646296,-500.0,0.00014063,2]
[353490041,1739880646306,-500.0,0.00014063,2]
[353490043,1739880646315,-500.0,0.00014063,2]
[353490045,1739880646324,-500.0,0.00014063,2]
[353490048,1739880646334,-500.0,0.00014063,2]
[353490049,1739880646343,-500.0,0.00014063,2]
[353490052,1739880646353,-500.0,0.00014063,2]
[353490054,1739880646363,-500.0,0.00014063,2]
[353490056,1739880646372,-500.0,0.00014063,2]
[353490058,1739880646382,-500.0,0.00014063,2]
[353490060,1739880646393,-500.0,0.00014063,2]
[353490062,1739880646403,-500.0,0.00014063,2]
[353490064,1739880646413,-500.0,0.00014063,2]
[353490066,1739880646421,-500.0,0.00014063,2]
[353490067,1739880646432,-500.0,0.00014063,2]
[353490069,1739880646442,-500.0,0.00014063,2]
[353490071,1739880646451,-500.0,0.00014063,2]
[353490073,1739880646460,-500.0,0.00014063,2]
[353490076,1739880646469,-500.0,0.00014063,2]
[353490077,1739880646479,-500.0,0.00014063,2]
[353490080,1739880646489,-500.0,0.00014063,2]
[353490081,1739880646498,-500.0,0.00014063,2]
[353490084,1739880646508,-500.0,0.00014063,2]
[353490086,1739880646519,-500.0,0.00014063,2]
[353490088,1739880646528,-497.3,0.00014063,2]
[353490090,1739880646538,-500.0,0.00014063,2]
[353490092,1739880646547,-500.0,0.00014063,2]
[353490094,1739880646557,-560.31954463,0.00014063,2]
[353490096,1739880646567,-500.0,0.00014063,2]
[353490098,1739880646577,-500.0,0.00014063,2]
[353490100,1739880646587,-387.48,0.00014063,2]
[353490102,1739880646596,-500.0,0.00014063,2]
[353490104,1739880646606,-500.0,0.00014063,2]
[353490106,1739880646615,-500.0,0.00014063,2]
[353490108,1739880646625,-500.0,0.00014063,2]
[353490118,1739880646712,-630.06893338,0.00014063,2]
[353490120,1739880646724,-500.0,0.00014063,2]
[353490122,1739880646734,-500.0,0.00014063,2]
[353490124,1739880646745,-500.0,0.00014063,2]
[353490126,1739880646754,-500.0,0.00014063,2]
[353490128,1739880646763,-547.19,0.00014063,2]
[353490130,1739880646773,-500.0,0.00014063,2]
[353490132,1739880646783,-500.0,0.00014063,2]
[353490134,1739880646792,-500.0,0.00014063,2]
[353490136,1739880646802,-500.0,0.00014063,2]
[353490138,1739880646812,-500.0,0.00014063,2]
[353490140,1739880646822,-500.0,0.00014063,2]
[353490142,1739880646831,-500.0,0.00014063,2]
[353490144,1739880646841,-500.0,0.00014063,2]
[353490146,1739880646851,-500.0,0.00014063,2]
[353490148,1739880646860,-500.0,0.00014063,2]
[353490150,1739880646871,-4393.68,0.00014063,2]
[353490152,1739880646881,-500.0,0.00014063,2]
[353490154,1739880646890,-500.0,0.00014063,2]
[353490156,1739880646899,-500.0,0.00014063,2]
[353490158,1739880646909,-500.0,0.00014063,2]
[353490160,1739880646923,-500.0,0.00014063,2]
[353490162,1739880646933,-1754.53,0.00014063,2]
[353490164,1739880646942,-500.0,0.00014063,2]
[353490166,1739880646951,-500.0,0.00014063,2]
[353490168,1739880646961,-500.0,0.00014063,2]
[353490170,1739880646970,-500.0,0.00014063,2]
[353490172,1739880646979,-500.0,0.00014063,2]
[353490174,1739880646989,-500.0,0.00014063,2]
[353490176,1739880646998,-500.0,0.00014063,2]
[353490178,1739880647008,-576.7,0.00014063,2]
[353490180,1739880647017,-561.42,0.00014063,2]
[353490182,1739880647026,-1710.59,0.00014063,2]
[353490184,1739880647036,-500.0,0.00014063,2]
[353490186,1739880647045,-500.0,0.00014063,2]
[353490188,1739880647055,-355.84,0.00014063,2]
[353490190,1739880647064,-556.54,0.00014063,2]
[353490192,1739880647074,-372.84,0.00014063,2]
[353490194,1739880647083,-322.88,0.00014063,2]
[353490196,1739880647093,-500.0,0.00014064,2]
[353490198,1739880647102,-500.0,0.00014064,2]
[353490200,1739880647112,-500.0,0.00014064,2]
[353490202,1739880647122,-500.0,0.00014064,2]
[353490204,1739880647131,-500.0,0.00014064,2]
[353490206,1739880647141,-500.0,0.00014064,2]
[353490208,1739880647150,-500.0,0.00014064,2]
[353490210,1739880647160,-500.0,0.00014064,2]
[353490212,1739880647169,-500.0,0.00014064,2]
[353490214,1739880647180,-500.0,0.00014064,2]
[353490217,1739880647189,-500.0,0.00014064,2]
[353490219,1739880647200,-500.0,0.00014064,2]
[353490221,1739880647209,-500.0,0.00014064,2]
[353490223,1739880647218,-500.0,0.00014064,2]
[353490224,1739880647228,-500.0,0.00014064,2]
[353490226,1739880647238,-500.0,0.00014065,2]
[353490228,1739880647247,-251.02,0.00014065,2]
[353490231,1739880647257,-400.8,0.00014065,2]
[353490232,1739880647266,-321.88,0.00014065,2]
[353490235,1739880647276,-500.0,0.00014065,2]
[353490237,1739880647285,-500.0,0.00014065,2]
[353490239,1739880647294,-500.0,0.00014144,2]
[353490241,1739880647304,-500.0,0.00014144,2]
[353490243,1739880647313,-813.59,0.00014144,2]
[353490245,1739880647323,-500.0,0.00014144,2]
[353490247,1739880647333,-491.3,0.00014144,2]
[353490249,1739880647342,-500.0,0.00014144,2]
[353490251,1739880647352,-500.0,0.00014144,2]
[353490253,1739880647363,-514.65,0.00014144,2]
[353490255,1739880647372,-500.0,0.00014144,2]
[353490257,1739880647382,-500.0,0.00014144,2]
[353490259,1739880647392,-500.0,0.00014144,2]
[353490261,1739880647401,-500.0,0.00014144,2]
[353490263,1739880647411,-500.0,0.00014144,2]
[353490265,1739880647421,-500.0,0.00014144,2]
[353490267,1739880647431,-500.0,0.00014144,2]
[353490269,1739880647440,-500.0,0.00014144,2]
[353490271,1739880647450,-524.2,0.00014144,2]
[353490273,1739880647459,-500.0,0.00014144,2]
[353490275,1739880647470,-500.0,0.00014145,2]
[353490277,1739880647479,-500.0,0.00014145,2]
[353490279,1739880647488,-624.53,0.00014145,2]
[353490281,1739880647497,-500.0,0.00014145,2]
[353490283,1739880647507,-500.0,0.00014145,2]
[353490285,1739880647516,-500.0,0.00014145,2]
[353490287,1739880647525,-500.0,0.00014145,2]
[353490289,1739880647535,-500.0,0.00014145,2]
[353490291,1739880647544,-580.37,0.00014145,2]
[353490293,1739880647553,-500.0,0.00014145,2]
[353490295,1739880647562,-217.58,0.00014145,2]
[353490298,1739880647572,-500.0,0.00014145,2]
[353490299,1739880647581,-500.0,0.00014145,2]
[353490302,1739880647591,-503.82,0.00014145,2]
[353490304,1739880647600,-500.0,0.00014145,2]
[353490305,1739880647609,-626.59,0.00014145,2]
[353490308,1739880647619,-4393.68,0.00014145,2]
[353490309,1739880647628,-500.0,0.00014145,2]
[353490312,1739880647637,-500.0,0.00014145,2]
[353490314,1739880647647,-262.99,0.00014145,2]
[353490316,1739880647656,-500.0,0.00014145,2]
[353490318,1739880647666,-369.1,0.00014145,2]
[353490320,1739880647679,-1754.53,0.00014145,2]
[353490322,1739880647689,-500.0,0.00014145,2]
[353490324,1739880647700,-500.0,0.00014145,2]
[353490326,1739880647711,-162.19,0.00014145,2]
[353490328,1739880647722,-500.0,0.00014145,2]
[353490330,1739880647731,-1710.59,0.00014145,2]
[353490332,1739880647741,-431.7,0.00014145,2]
[353490334,1739880647752,-282.58,0.00014145,2]
[353490336,1739880647761,-182.22,0.00014146,2]
[353490338,1739880647771,-500.0,0.00014146,2]
[353490340,1739880647780,-500.0,0.00014146,2]
[353490342,1739880647790,-500.0,0.00014146,2]
[353490344,1739880647800,-500.0,0.00014147,2]
[353490346,1739880647810,-403.12,0.00014147,2]
[353490348,1739880647820,-500.0,0.00014161,2]
[353490350,1739880647830,-600.0,0.00014164,2]
[353490352,1739880647839,-501.27936597,0.00014167,2]
[353490354,1739880647849,-387.20735709,0.00014167,2]
[353490356,1739880647859,-268.10890584,0.00014172,2]
[353490358,1739880647869,-500.0,0.00014178,2]
[353490360,1739880647878,-510.00728797,0.00014178,2]
[353490362,1739880647888,-505.67437552,0.00014181,2]
[353490363,1739880647898,-500.0,0.00014226,2]
[353490366,1739880647908,-500.0,0.00014226,2]
[353490368,1739880647919,-813.59,0.00014226,2]
[353490370,1739880647930,-648.16,0.00014226,2]
[353490372,1739880647940,-500.0,0.00014226,2]
[353490374,1739880647950,-500.0,0.00014226,2]
[353490376,1739880647960,-514.65,0.00014226,2]
[353490378,1739880647970,-500.0,0.00014226,2]
[353490380,1739880647980,-270.37,0.00014226,2]
[353490382,1739880647990,-500.0,0.00014226,2]
[353490384,1739880647999,-500.0,0.00014226,2]
[353490386,1739880648009,-343.2,0.00014226,2]
[353490388,1739880648018,-500.0,0.00014226,2]
[353490390,1739880648028,-500.0,0.00014226,2]
[353490392,1739880648039,-500.0,0.00014226,2]
[353490394,1739880648050,-290.59,0.00014227,2]
[353490396,1739880648060,-500.0,0.00014227,2]
[353490398,1739880648070,-500.0,0.00014227,2]
[353490400,1739880648080,-272.08,0.00014227,2]
[353490402,1739880648090,-465.43,0.00014227,2]
[353490404,1739880648101,-222.21,0.00014227,2]
[353490406,1739880648110,-500.0,0.00014227,2]
[353490408,1739880648120,-500.0,0.00014227,2]
[353490410,1739880648130,-399.44214941,0.00014227,2]
[353490412,1739880648140,-500.0,0.00014227,2]
[353490414,1739880648151,-152.93,0.00014227,2]
[353490416,1739880648161,-4393.68,0.00014227,2]
[353490418,1739880648173,-365.39,0.00014227,2]
[353490420,1739880648184,-500.0,0.00014227,2]
[353490422,1739880648195,-529.7,0.00014227,2]
[353490424,1739880648206,-1754.53,0.00014227,2]
[353490426,1739880648217,-315.95,0.00014227,2]
[353490429,1739880648227,-455.69,0.00014227,2]
[353490431,1739880648239,-500.0,0.00014227,2]
[353490433,1739880648249,-1710.59,0.00014227,2]
[353490435,1739880648258,-500.0,0.00014228,2]
[353490436,1739880648268,-500.0,0.00014228,2]
[353490439,1739880648279,-500.0,0.00014228,2]
[353490440,1739880648289,-378.72,0.00014229,2]
[353490443,1739880648299,-179.99180864,0.00014278,2]
[353490445,1739880648308,-172.137,0.00014278,2]
[353490447,1739880648319,-500.0,0.00014308,2]
[353490449,1739880648330,-500.0,0.00014308,2]
[353490451,1739880648341,-813.59,0.00014308,2]
[353490453,1739880648351,-500.0,0.00014308,2]
[353490455,1739880648362,-500.0,0.00014308,2]
[353490457,1739880648372,-514.65,0.00014308,2]
[353490459,1739880648383,-500.0,0.00014308,2]
[353490461,1739880648393,-236.82,0.00014308,2]
[353490463,1739880648404,-619.71,0.00014308,2]
[353490465,1739880648414,-500.0,0.00014308,2]
[353490467,1739880648425,-500.0,0.00014308,2]
[353490469,1739880648435,-500.0,0.00014308,2]
[353490471,1739880648445,-198.2,0.00014309,2]
[353490473,1739880648455,-586.89,0.00014309,2]
[353490475,1739880648465,-544.95,0.00014309,2]
[353490477,1739880648477,-407.72,0.00014309,2]
[353490478,1739880648486,-500.0,0.00014309,2]
[353490480,1739880648497,-4393.68,0.00014309,2]
[353490482,1739880648507,-500.0,0.00014309,2]
[353490485,1739880648517,-1754.53,0.00014309,2]
[353490487,1739880648528,-500.0,0.00014309,2]
[353490489,1739880648539,-1710.59,0.00014309,2]
[353490491,1739880648549,-500.0,0.0001431,2]
[353490493,1739880648559,-500.0,0.0001431,2]
[353490495,1739880648569,-340.88,0.0001431,2]
[353490497,1739880648579,-500.0,0.0001439,2]
[353490499,1739880648590,-500.0,0.0001439,2]
[353490501,1739880648604,-813.59,0.0001439,2]
[353490503,1739880648615,-500.0,0.0001439,2]
[353490505,1739880648627,-500.0,0.0001439,2]
[353490507,1739880648638,-514.65,0.0001439,2]
[353490509,1739880648650,-500.0,0.0001439,2]
[353490511,1739880648661,-209.57,0.0001439,2]
[353490513,1739880648674,-500.0,0.0001439,2]
[353490515,1739880648686,-397.67,0.0001439,2]
[353490517,1739880648697,-500.0,0.00014391,2]
[353490519,1739880648714,-4393.68,0.00014391,2]
[353490521,1739880648727,-500.0,0.00014391,2]
[353490523,1739880648738,-1754.53,0.00014391,2]
[353490525,1739880648749,-308.96,0.00014391,2]
[353490527,1739880648763,-1710.59,0.00014391,2]
[353490529,1739880648774,-500.0,0.00014392,2]
[353490531,1739880648785,-500.0,0.00014392,2]
[353490533,1739880648795,-259.64,0.00014473,2]
[353490535,1739880648806,-500.0,0.00014473,2]
[353490537,1739880648815,-4393.68,0.00014473,2]
[353490539,1739880648825,-500.0,0.00014473,2]
[353490542,1739880648836,-1754.53,0.00014473,2]
[353490544,1739880648847,-500.0,0.00014473,2]
[353490546,1739880648857,-813.59,0.00014473,2]
[353490547,1739880648867,-500.0,0.00014473,2]
[353490549,1739880648880,-500.0,0.00014473,2]
[353490551,1739880648891,-514.65,0.00014473,2]
[353490553,1739880648902,-500.0,0.00014473,2]
[353490556,1739880648913,-1710.59,0.00014473,2]
[353490558,1739880648923,-500.0,0.00014473,2]
[353490559,1739880648933,-263.11,0.00014475,2]
[353490561,1739880648942,-500.0,0.00014475,2]
[353490563,1739880648953,-500.0,0.00014555,2]
[353490565,1739880648964,-500.0,0.00014555,2]
[353490568,1739880648976,-813.59,0.00014555,2]
[353490570,1739880648986,-500.0,0.00014555,2]
[353490572,1739880648996,-578.66,0.00014555,2]
[353490574,1739880649006,-514.65,0.00014555,2]
[353490576,1739880649017,-500.0,0.00014555,2]
[353490578,1739880649027,-500.0,0.00014555,2]
[353490580,1739880649036,-4393.68,0.00014556,2]
[353490582,1739880649046,-500.0,0.00014556,2]
[353490584,1739880649056,-1754.53,0.00014556,2]
[353490586,1739880649067,-1710.59,0.00014556,2]
[353490588,1739880649078,-500.0,0.00014557,2]
[353490590,1739880649088,-500.0,0.00014637,2]
[353490592,1739880649099,-500.0,0.00014637,2]
[353490594,1739880649109,-813.59,0.00014637,2]
[353490606,1739880649202,-500.0,0.00014637,2]
[353490608,1739880649225,-514.65,0.00014637,2]
[353490610,1739880649236,-500.0,0.00014637,2]
[353490612,1739880649247,-500.0,0.00014637,2]
[353490614,1739880649259,-4393.68,0.00014638,2]
[353490616,1739880649271,-500.0,0.00014638,2]
[353490618,1739880649281,-1754.53,0.00014638,2]
[353490620,1739880649291,-1710.59,0.00014638,2]
[353490622,1739880649301,-500.0,0.00014639,2]
[353490624,1739880649311,-500.0,0.00014719,2]
[353490626,1739880649322,-464.68,0.00014719,2]
[353490628,1739880649332,-813.59,0.00014719,2]